[Event "Titled Tuesday Blitz February 14 Late 2023"]
[White "Tarnowska, Aleksandra"]
[Black "Fernandez Garcia, Gumersindo"]
[WhiteFideId "1180967"]
[BlackFideId "24516740"]
[WhiteElo "1835"]
[BlackElo "2160"]
[Result "0-1"]
[Round "04"]
[TimeControl "180+2"]
[Date "2023.02.14"]
[WhiteClock "0:00:02"]
[BlackClock "0:01:38"]

1. e4 {[%clk 0:03:00]}  c5 {[%clk 0:02:55]} 2. Nf3 {[%clk 0:03:01]}  g6 {[%clk 0:02:53]} 3. c3 {[%clk 0:03:00]}  Bg7 {[%clk 0:02:53]} 4. d4 {[%clk 0:03:00]}  cxd4 {[%clk 0:02:54]} 5. cxd4 {[%clk 0:03:00]}  d5 {[%clk 0:02:54]} 6. e5 {[%clk 0:03:00]}  Nc6 {[%clk 0:02:55]} 7. Nc3 {[%clk 0:02:59]}  Nh6 {[%clk 0:02:51]} 8. Bb5 {[%clk 0:02:41]}  O-O {[%clk 0:02:50]} 9. O-O {[%clk 0:02:39]}  Bg4 {[%clk 0:02:46]} 10. Be3 {[%clk 0:02:14]}  Nf5 {[%clk 0:02:44]} 11. Bxc6 {[%clk 0:02:06]}  bxc6 {[%clk 0:02:44]} 12. h3 {[%clk 0:02:07]}  Bxf3 {[%clk 0:02:40]} 13. Qxf3 {[%clk 0:02:07]}  f6 {[%clk 0:02:40]} 14. exf6 {[%clk 0:01:12]}  Bxf6 {[%clk 0:02:40]} 15. Qg4 {[%clk 0:00:51]}  Qb6 {[%clk 0:02:32]} 16. Na4 {[%clk 0:00:45]}  Qb4 {[%clk 0:02:30]} 17. Nc5 {[%clk 0:00:36]}  Nxd4 {[%clk 0:02:03]} 18. Nd7 {[%clk 0:00:20]}  Nc2 {[%clk 0:02:03]} 19. Qe6+ {[%clk 0:00:13]}  Kg7 {[%clk 0:02:00]} 20. Nxf8 {[%clk 0:00:07]}  Rxf8 {[%clk 0:02:01]} 21. Rac1 {[%clk 0:00:05]}  Qxb2 {[%clk 0:01:53]} 22. Bc5 {[%clk 0:00:05]}  Rf7 {[%clk 0:01:48]} 23. Rfd1 {[%clk 0:00:02]}  Qxa2 {[%clk 0:01:48]} 24. Rf1 {[%clk 0:00:02]}  d4 {[%clk 0:01:46]} 25. Qc8 {[%clk 0:00:02]}  d3 {[%clk 0:01:45]} 26. Be3 {[%clk 0:00:02]}  Nxe3 {[%clk 0:01:44]} 27. fxe3 {[%clk 0:00:03]}  Qe2 {[%clk 0:01:41]} 28. Rf2 {[%clk 0:00:02]}  Qxe3 {[%clk 0:01:41]} 29. Rf1 {[%clk 0:00:02]}  d2 {[%clk 0:01:40]} 30. Qxc6 {[%clk 0:00:02]}  Bd4 {[%clk 0:01:38]} 0-1


[Site "https://www.chess.com"]

[Event "Titled Tuesday Blitz February 14 Late 2023"]
[White "Papayan, Oleg"]
[Black "Lopez Perdomo, Juan David"]
[WhiteFideId "4193911"]
[BlackFideId "4405137"]
[WhiteElo "2253"]
[BlackElo "2029"]
[Result "1/2-1/2"]
[Round "04"]
[TimeControl "180+2"]
[Date "2023.02.14"]
[WhiteClock "0:00:11"]
[BlackClock "0:01:09"]

1. e4 {[%clk 0:03:00]}  e6 {[%clk 0:02:59]} 2. d4 {[%clk 0:03:01]}  d5 {[%clk 0:02:59]} 3. Nc3 {[%clk 0:03:01]}  Bb4 {[%clk 0:02:59]} 4. e5 {[%clk 0:03:01]}  c5 {[%clk 0:03:00]} 5. a3 {[%clk 0:03:02]}  Ba5 {[%clk 0:03:00]} 6. b4 {[%clk 0:02:56]}  cxd4 {[%clk 0:03:00]} 7. Qg4 {[%clk 0:02:56]}  Ne7 {[%clk 0:03:00]} 8. Nb5 {[%clk 0:02:55]}  Bc7 {[%clk 0:03:00]} 9. f4 {[%clk 0:02:42]}  O-O {[%clk 0:02:59]} 10. Nxd4 {[%clk 0:02:40]}  Nbc6 {[%clk 0:02:58]} 11. Ngf3 {[%clk 0:02:40]}  f5 {[%clk 0:02:57]} 12. Qg3 {[%clk 0:02:24]}  Bb6 {[%clk 0:02:55]} 13. c3 {[%clk 0:02:20]}  Qc7 {[%clk 0:02:53]} 14. Bd2 {[%clk 0:02:16]}  Bd7 {[%clk 0:02:38]} 15. Bd3 {[%clk 0:02:10]}  a6 {[%clk 0:02:35]} 16. O-O {[%clk 0:02:07]}  Nxd4 {[%clk 0:02:35]} 17. cxd4 {[%clk 0:01:45]}  Bb5 {[%clk 0:02:35]} 18. Rfc1 {[%clk 0:01:44]}  Qd7 {[%clk 0:02:35]} 19. Bf1 {[%clk 0:01:25]}  Bxf1 {[%clk 0:02:34]} 20. Kxf1 {[%clk 0:01:26]}  Rac8 {[%clk 0:02:29]} 21. Qf2 {[%clk 0:01:21]}  Rxc1+ {[%clk 0:02:28]} 22. Rxc1 {[%clk 0:01:20]}  Qa4 {[%clk 0:02:29]} 23. Qe3 {[%clk 0:01:13]}  Nc6 {[%clk 0:02:23]} 24. Qd3 {[%clk 0:01:08]}  Na7 {[%clk 0:02:22]} 25. Ng5 {[%clk 0:00:49]}  Re8 {[%clk 0:02:21]} 26. g4 {[%clk 0:00:46]}  h6 {[%clk 0:02:19]} 27. Nxe6 {[%clk 0:00:32]}  Re7 {[%clk 0:02:17]} 28. Qxf5 {[%clk 0:00:28]}  Rf7 {[%clk 0:02:11]} 29. Qg6 {[%clk 0:00:26]}  Qxa3 {[%clk 0:02:09]} 30. f5 {[%clk 0:00:19]}  Nc6 {[%clk 0:02:01]} 31. Bxh6 {[%clk 0:00:16]}  Ne7 {[%clk 0:01:39]} 32. Rc8+ {[%clk 0:00:16]}  Nxc8 {[%clk 0:01:38]} 33. Bxg7 {[%clk 0:00:16]}  Qf3+ {[%clk 0:01:14]} 34. Ke1 {[%clk 0:00:15]}  Qe3+ {[%clk 0:01:11]} 35. Kf1 {[%clk 0:00:13]}  Qf3+ {[%clk 0:01:10]} 36. Ke1 {[%clk 0:00:13]}  Qe3+ {[%clk 0:01:10]} 37. Kd1 {[%clk 0:00:11]}  Qd3+ {[%clk 0:01:09]} 38. Ke1 {[%clk 0:00:11]}  Qe3+ {[%clk 0:01:09]} 1/2-1/2


[Site "https://www.chess.com"]

[Event "Titled Tuesday Blitz February 14 Late 2023"]
[White "Grot, Blazej"]
[Black "Cardozo Munar, Carlos Eduardo"]
[WhiteFideId "21835845"]
[BlackFideId "4409477"]
[WhiteElo "1990"]
[BlackElo "2043"]
[Result "1-0"]
[Round "04"]
[TimeControl "180+2"]
[Date "2023.02.14"]
[WhiteClock "0:01:24"]
[BlackClock "0:01:11"]

1. e4 {[%clk 0:03:00]}  e6 {[%clk 0:03:00]} 2. d3 {[%clk 0:03:00]}  d5 {[%clk 0:03:00]} 3. Nd2 {[%clk 0:03:01]}  Nf6 {[%clk 0:03:01]} 4. Ngf3 {[%clk 0:03:01]}  c5 {[%clk 0:03:01]} 5. g3 {[%clk 0:03:01]}  Nc6 {[%clk 0:03:01]} 6. Bg2 {[%clk 0:03:01]}  Be7 {[%clk 0:03:02]} 7. O-O {[%clk 0:03:01]}  b5 {[%clk 0:03:02]} 8. Re1 {[%clk 0:03:02]}  a5 {[%clk 0:03:02]} 9. h4 {[%clk 0:03:02]}  a4 {[%clk 0:03:03]} 10. Nf1 {[%clk 0:03:02]}  b4 {[%clk 0:03:03]} 11. N1h2 {[%clk 0:03:02]}  Bb7 {[%clk 0:03:01]} 12. e5 {[%clk 0:03:02]}  Nd7 {[%clk 0:03:00]} 13. Bf4 {[%clk 0:03:03]}  a3 {[%clk 0:02:52]} 14. b3 {[%clk 0:03:00]}  Qc7 {[%clk 0:02:48]} 15. h5 {[%clk 0:03:00]}  h6 {[%clk 0:02:48]} 16. Qd2 {[%clk 0:02:58]}  Nd4 {[%clk 0:02:46]} 17. Nxd4 {[%clk 0:02:57]}  cxd4 {[%clk 0:02:47]} 18. Nf3 {[%clk 0:02:57]}  Qc3 {[%clk 0:02:47]} 19. Qxc3 {[%clk 0:02:38]}  dxc3 {[%clk 0:02:46]} 20. Nd4 {[%clk 0:02:38]}  O-O {[%clk 0:02:43]} 21. Nb5 {[%clk 0:02:36]}  Rfd8 {[%clk 0:02:30]} 22. g4 {[%clk 0:02:17]}  Nf8 {[%clk 0:02:30]} 23. Be3 {[%clk 0:02:01]}  f6 {[%clk 0:02:20]} 24. exf6 {[%clk 0:01:59]}  Bxf6 {[%clk 0:02:21]} 25. Bc5 {[%clk 0:01:55]}  Ba6 {[%clk 0:02:13]} 26. Nc7 {[%clk 0:01:51]}  Rdc8 {[%clk 0:02:09]} 27. Nxa8 {[%clk 0:01:44]}  Rxc5 {[%clk 0:02:10]} 28. Nb6 {[%clk 0:01:44]}  Rc6 {[%clk 0:01:58]} 29. Na4 {[%clk 0:01:44]}  Kf7 {[%clk 0:01:58]} 30. Rad1 {[%clk 0:01:40]}  Bb5 {[%clk 0:01:41]} 31. Rb1 {[%clk 0:01:40]}  Nd7 {[%clk 0:01:36]} 32. Red1 {[%clk 0:01:40]}  Ra6 {[%clk 0:01:33]} 33. d4 {[%clk 0:01:25]}  Bxa4 {[%clk 0:01:28]} 34. bxa4 {[%clk 0:01:26]}  Rxa4 {[%clk 0:01:29]} 35. Bf1 {[%clk 0:01:26]}  Be7 {[%clk 0:01:25]} 36. Bb5 {[%clk 0:01:26]}  Ra8 {[%clk 0:01:23]} 37. Bxd7 {[%clk 0:01:26]}  Rd8 {[%clk 0:01:21]} 38. Bb5 {[%clk 0:01:26]}  Kf6 {[%clk 0:01:20]} 39. Bd3 {[%clk 0:01:26]}  Kg5 {[%clk 0:01:21]} 40. f3 {[%clk 0:01:26]}  Kf4 {[%clk 0:01:21]} 41. Kg2 {[%clk 0:01:26]}  Bf6 {[%clk 0:01:12]} 42. Rxb4 {[%clk 0:01:25]}  Ke3 {[%clk 0:01:11]} 43. Re1+ {[%clk 0:01:24]}  Kd2 {[%clk 0:01:11]} 44. Re2+ {[%clk 0:01:24]}  Kd1 {[%clk 0:01:11]} 45. Rb1# {[%clk 0:01:24]} 1-0


[Site "https://www.chess.com"]

[Event "Titled Tuesday Blitz February 14 Late 2023"]
[White "Sabar, Ethmane Daouda"]
[Black "Poeta, Caio Medeiros"]
[WhiteFideId "19600097"]
[BlackFideId "2142660"]
[WhiteElo "2040"]
[BlackElo "2088"]
[Result "1-0"]
[Round "04"]
[TimeControl "180+2"]
[Date "2023.02.14"]
[WhiteClock "0:00:14"]
[BlackClock "0:00:17"]

1. e4 {[%clk 0:03:00]}  c6 {[%clk 0:02:59]} 2. d4 {[%clk 0:03:00]}  d5 {[%clk 0:03:00]} 3. Nc3 {[%clk 0:03:01]}  dxe4 {[%clk 0:03:00]} 4. Nxe4 {[%clk 0:03:01]}  Bf5 {[%clk 0:03:00]} 5. Ng3 {[%clk 0:03:01]}  Bg6 {[%clk 0:03:00]} 6. h4 {[%clk 0:03:01]}  h6 {[%clk 0:03:00]} 7. h5 {[%clk 0:03:01]}  Bh7 {[%clk 0:03:01]} 8. Nf3 {[%clk 0:03:02]}  Nd7 {[%clk 0:03:00]} 9. Bd3 {[%clk 0:03:02]}  Bxd3 {[%clk 0:03:00]} 10. Qxd3 {[%clk 0:03:03]}  e6 {[%clk 0:03:00]} 11. Bf4 {[%clk 0:03:02]}  Qa5+ {[%clk 0:03:00]} 12. Bd2 {[%clk 0:03:02]}  Bb4 {[%clk 0:03:00]} 13. c3 {[%clk 0:03:01]}  Be7 {[%clk 0:03:00]} 14. O-O {[%clk 0:02:46]}  Ngf6 {[%clk 0:02:59]} 15. b4 {[%clk 0:02:47]}  Qc7 {[%clk 0:02:59]} 16. Ne4 {[%clk 0:02:43]}  Nxh5 {[%clk 0:02:57]} 17. g3 {[%clk 0:02:17]}  O-O {[%clk 0:02:52]} 18. Kg2 {[%clk 0:02:16]}  Rad8 {[%clk 0:02:47]} 19. Rh1 {[%clk 0:02:12]}  Nhf6 {[%clk 0:02:46]} 20. Nxf6+ {[%clk 0:02:05]}  Bxf6 {[%clk 0:02:45]} 21. Qe4 {[%clk 0:01:59]}  e5 {[%clk 0:02:43]} 22. Nh4 {[%clk 0:01:29]}  Bxh4 {[%clk 0:02:30]} 23. Rxh4 {[%clk 0:01:30]}  f5 {[%clk 0:02:25]} 24. Qf3 {[%clk 0:01:24]}  e4 {[%clk 0:02:16]} 25. Qe2 {[%clk 0:01:12]}  Rf6 {[%clk 0:02:06]} 26. Qc4+ {[%clk 0:01:04]}  Kh7 {[%clk 0:02:03]} 27. Bg5 {[%clk 0:01:04]}  Rdf8 {[%clk 0:01:49]} 28. Bxf6 {[%clk 0:01:03]}  Nxf6 {[%clk 0:01:45]} 29. Qe6 {[%clk 0:01:00]}  Nd5 {[%clk 0:01:43]} 30. Rah1 {[%clk 0:00:53]}  Rf6 {[%clk 0:01:36]} 31. Qe8 {[%clk 0:00:51]}  Nxc3 {[%clk 0:01:22]} 32. a3 {[%clk 0:00:43]}  Nd5 {[%clk 0:01:14]} 33. b5 {[%clk 0:00:25]}  Qa5 {[%clk 0:00:46]} 34. bxc6 {[%clk 0:00:21]}  bxc6 {[%clk 0:00:46]} 35. Rb1 {[%clk 0:00:15]}  Nb6 {[%clk 0:00:32]} 36. Rc1 {[%clk 0:00:12]}  Qxa3 {[%clk 0:00:27]} 37. Rxc6 {[%clk 0:00:12]}  Qf3+ {[%clk 0:00:27]} 38. Kg1 {[%clk 0:00:12]}  Rxc6 {[%clk 0:00:12]} 39. Qxc6 {[%clk 0:00:13]}  e3 {[%clk 0:00:13]} 40. Qxf3 {[%clk 0:00:12]}  exf2+ {[%clk 0:00:13]} 41. Kxf2 {[%clk 0:00:12]}  Nc4 {[%clk 0:00:13]} 42. Qxf5+ {[%clk 0:00:13]}  Kg8 {[%clk 0:00:14]} 43. Qd5+ {[%clk 0:00:13]}  Kh7 {[%clk 0:00:15]} 44. Qxc4 {[%clk 0:00:13]}  Kg6 {[%clk 0:00:15]} 45. Rg4+ {[%clk 0:00:14]}  Kh7 {[%clk 0:00:16]} 46. Qf7 {[%clk 0:00:13]}  h5 {[%clk 0:00:17]} 47. Qxg7# {[%clk 0:00:14]} 1-0


[Site "https://www.chess.com"]

[Event "Titled Tuesday Blitz February 14 Late 2023"]
[White "Delorme, Alban"]
[Black "Forgacs, Attila Jr."]
[WhiteFideId "623636"]
[BlackFideId "773654"]
[WhiteElo "2298"]
[BlackElo "2264"]
[Result "0-1"]
[Round "04"]
[TimeControl "180+2"]
[Date "2023.02.14"]
[WhiteClock "0:01:01"]
[BlackClock "0:00:28"]

1. e4 {[%clk 0:03:00]}  e5 {[%clk 0:03:00]} 2. Nf3 {[%clk 0:03:00]}  Nc6 {[%clk 0:03:00]} 3. Bc4 {[%clk 0:03:00]}  Nf6 {[%clk 0:03:00]} 4. d4 {[%clk 0:03:01]}  exd4 {[%clk 0:03:00]} 5. e5 {[%clk 0:03:02]}  d5 {[%clk 0:02:59]} 6. Bb5 {[%clk 0:03:02]}  Ne4 {[%clk 0:02:59]} 7. Nxd4 {[%clk 0:03:03]}  Bd7 {[%clk 0:03:00]} 8. Bxc6 {[%clk 0:03:03]}  bxc6 {[%clk 0:03:01]} 9. O-O {[%clk 0:03:04]}  Bc5 {[%clk 0:03:00]} 10. f3 {[%clk 0:03:04]}  Ng5 {[%clk 0:03:00]} 11. Be3 {[%clk 0:03:04]}  Bb6 {[%clk 0:03:00]} 12. f4 {[%clk 0:03:04]}  Ne4 {[%clk 0:03:00]} 13. Nd2 {[%clk 0:03:04]}  c5 {[%clk 0:02:59]} 14. N4f3 {[%clk 0:03:04]}  Nxd2 {[%clk 0:02:59]} 15. Qxd2 {[%clk 0:03:04]}  d4 {[%clk 0:03:00]} 16. Bf2 {[%clk 0:03:04]}  Bc6 {[%clk 0:03:00]} 17. c3 {[%clk 0:03:04]}  Bxf3 {[%clk 0:02:44]} 18. gxf3 {[%clk 0:03:04]}  Qd5 {[%clk 0:02:30]} 19. Qd3 {[%clk 0:02:57]}  O-O-O {[%clk 0:02:25]} 20. Qa6+ {[%clk 0:02:46]}  Kb8 {[%clk 0:02:22]} 21. a4 {[%clk 0:02:46]}  c4 {[%clk 0:01:18]} 22. a5 {[%clk 0:02:20]}  Bc5 {[%clk 0:01:18]} 23. Rfd1 {[%clk 0:01:56]}  Ka8 {[%clk 0:00:52]} 24. Bxd4 {[%clk 0:01:30]}  Qxf3 {[%clk 0:00:41]} 25. Rf1 {[%clk 0:01:09]}  Rxd4 {[%clk 0:00:26]} 26. cxd4 {[%clk 0:01:10]}  Bxd4+ {[%clk 0:00:26]} 27. Rf2 {[%clk 0:01:00]}  Qxf2+ {[%clk 0:00:27]} 28. Kh1 {[%clk 0:01:01]}  Qf3# {[%clk 0:00:28]} 0-1


[Site "https://www.chess.com"]

[Event "Titled Tuesday Blitz February 14 Late 2023"]
[White "Yedidia, Daniel"]
[Black "Manu_ChessExcelsior"]
[WhiteFideId "30905907"]
[WhiteElo "2041"]
[BlackElo "1985"]
[Result "1-0"]
[Round "04"]
[TimeControl "180+2"]
[Date "2023.02.14"]
[WhiteClock "0:02:00"]
[BlackClock "0:00:17"]

1. d4 {[%clk 0:02:59]}  d5 {[%clk 0:02:59]} 2. c4 {[%clk 0:02:56]}  e6 {[%clk 0:02:59]} 3. Nc3 {[%clk 0:02:56]}  a6 {[%clk 0:02:59]} 4. Nf3 {[%clk 0:02:56]}  dxc4 {[%clk 0:02:55]} 5. a4 {[%clk 0:02:55]}  Nc6 {[%clk 0:02:47]} 6. e4 {[%clk 0:02:54]}  Na5 {[%clk 0:02:47]} 7. Bg5 {[%clk 0:02:50]}  Be7 {[%clk 0:02:39]} 8. h4 {[%clk 0:02:47]}  h6 {[%clk 0:02:38]} 9. Bxe7 {[%clk 0:02:46]}  Qxe7 {[%clk 0:02:39]} 10. Be2 {[%clk 0:02:46]}  Qb4 {[%clk 0:02:34]} 11. O-O {[%clk 0:02:41]}  Qxb2 {[%clk 0:02:23]} 12. Rc1 {[%clk 0:02:40]}  Qb4 {[%clk 0:02:21]} 13. e5 {[%clk 0:02:33]}  Ne7 {[%clk 0:02:17]} 14. d5 {[%clk 0:02:29]}  Nxd5 {[%clk 0:02:11]} 15. Nxd5 {[%clk 0:02:25]}  exd5 {[%clk 0:02:11]} 16. Qxd5 {[%clk 0:02:25]}  Be6 {[%clk 0:02:12]} 17. Qe4 {[%clk 0:02:24]}  O-O {[%clk 0:02:05]} 18. Nd4 {[%clk 0:02:24]}  c3 {[%clk 0:01:54]} 19. Bd3 {[%clk 0:02:15]}  g6 {[%clk 0:01:38]} 20. Qf4 {[%clk 0:02:12]}  Kh7 {[%clk 0:01:10]} 21. Nxe6 {[%clk 0:02:10]}  Qxf4 {[%clk 0:01:06]} 22. Nxf4 {[%clk 0:02:11]}  Rfe8 {[%clk 0:01:00]} 23. e6 {[%clk 0:02:09]}  Kg7 {[%clk 0:00:50]} 24. Rxc3 {[%clk 0:02:05]}  c6 {[%clk 0:00:40]} 25. exf7 {[%clk 0:02:04]}  Re5 {[%clk 0:00:23]} 26. Nxg6 {[%clk 0:01:59]}  Rd5 {[%clk 0:00:17]} 27. f8=Q+ {[%clk 0:01:59]}  Rxf8 {[%clk 0:00:16]} 28. Nxf8 {[%clk 0:02:00]}  Kxf8 {[%clk 0:00:17]} 29. Re1 {[%clk 0:02:00]} 1-0


[Site "https://www.chess.com"]

[Event "Titled Tuesday Blitz February 14 Late 2023"]
[White "Estrada Nieto, Julian"]
[Black "Ruiz Aguilar, Pablo Alexander"]
[WhiteFideId "5101018"]
[BlackFideId "4401352"]
[WhiteElo "2215"]
[BlackElo "2161"]
[Result "0-1"]
[Round "04"]
[TimeControl "180+2"]
[Date "2023.02.14"]
[WhiteClock "0:00:06"]
[BlackClock "0:00:04"]

1. e4 {[%clk 0:03:00]}  c5 {[%clk 0:02:59]} 2. Nf3 {[%clk 0:03:01]}  e6 {[%clk 0:02:59]} 3. c3 {[%clk 0:03:00]}  d5 {[%clk 0:02:59]} 4. exd5 {[%clk 0:03:00]}  Qxd5 {[%clk 0:03:00]} 5. d4 {[%clk 0:03:01]}  Nc6 {[%clk 0:02:59]} 6. Na3 {[%clk 0:03:01]}  cxd4 {[%clk 0:02:58]} 7. Nb5 {[%clk 0:02:43]}  Qd8 {[%clk 0:02:58]} 8. Nbxd4 {[%clk 0:02:43]}  Nxd4 {[%clk 0:02:56]} 9. Nxd4 {[%clk 0:02:42]}  Bd7 {[%clk 0:02:57]} 10. Be3 {[%clk 0:02:37]}  Nf6 {[%clk 0:02:56]} 11. Bd3 {[%clk 0:02:37]}  a6 {[%clk 0:02:51]} 12. O-O {[%clk 0:02:33]}  Bd6 {[%clk 0:02:50]} 13. Nf3 {[%clk 0:02:31]}  Qc7 {[%clk 0:02:48]} 14. Bd4 {[%clk 0:02:26]}  Bc6 {[%clk 0:02:38]} 15. h3 {[%clk 0:02:23]}  Rd8 {[%clk 0:02:37]} 16. Qe2 {[%clk 0:02:21]}  Nd5 {[%clk 0:02:20]} 17. Be5 {[%clk 0:01:58]}  Bxe5 {[%clk 0:02:19]} 18. Qxe5 {[%clk 0:01:58]}  O-O {[%clk 0:02:02]} 19. Rad1 {[%clk 0:01:33]}  Qxe5 {[%clk 0:01:57]} 20. Nxe5 {[%clk 0:01:33]}  Ba4 {[%clk 0:01:57]} 21. b3 {[%clk 0:01:12]}  f6 {[%clk 0:01:53]} 22. bxa4 {[%clk 0:01:00]}  fxe5 {[%clk 0:01:52]} 23. Bc4 {[%clk 0:00:59]}  Kf7 {[%clk 0:01:49]} 24. Rfe1 {[%clk 0:00:29]}  Kf6 {[%clk 0:01:41]} 25. Rd3 {[%clk 0:00:25]}  Nf4 {[%clk 0:01:21]} 26. Rf3 {[%clk 0:00:24]}  Rc8 {[%clk 0:00:58]} 27. Bb3 {[%clk 0:00:22]}  Ke7 {[%clk 0:00:27]} 28. Rxe5 {[%clk 0:00:20]}  Rc6 {[%clk 0:00:27]} 29. Kh2 {[%clk 0:00:18]}  Ng6 {[%clk 0:00:25]} 30. Rxf8 {[%clk 0:00:17]}  Nxf8 {[%clk 0:00:26]} 31. f4 {[%clk 0:00:15]}  Nd7 {[%clk 0:00:26]} 32. Re4 {[%clk 0:00:15]}  Kf6 {[%clk 0:00:25]} 33. g4 {[%clk 0:00:13]}  Nc5 {[%clk 0:00:25]} 34. Rb4 {[%clk 0:00:12]}  a5 {[%clk 0:00:19]} 35. Rb5 {[%clk 0:00:11]}  b6 {[%clk 0:00:18]} 36. g5+ {[%clk 0:00:10]}  Ke7 {[%clk 0:00:18]} 37. Bc2 {[%clk 0:00:09]}  Rd6 {[%clk 0:00:17]} 38. Kg3 {[%clk 0:00:07]}  g6 {[%clk 0:00:16]} 39. Rb1 {[%clk 0:00:05]}  Rd2 {[%clk 0:00:15]} 40. Bb3 {[%clk 0:00:05]}  Rd3+ {[%clk 0:00:15]} 41. Kf2 {[%clk 0:00:04]}  Rxc3 {[%clk 0:00:15]} 42. Rd1 {[%clk 0:00:04]}  Nxb3 {[%clk 0:00:14]} 43. axb3 {[%clk 0:00:04]}  Rxb3 {[%clk 0:00:15]} 44. Rc1 {[%clk 0:00:04]}  Rb4 {[%clk 0:00:14]} 45. Kf3 {[%clk 0:00:04]}  Kd6 {[%clk 0:00:14]} 46. Rd1+ {[%clk 0:00:04]}  Kc6 {[%clk 0:00:14]} 47. Rc1+ {[%clk 0:00:05]}  Kd5 {[%clk 0:00:13]} 48. Rd1+ {[%clk 0:00:05]}  Rd4 {[%clk 0:00:13]} 49. Rb1 {[%clk 0:00:05]}  Rb4 {[%clk 0:00:12]} 50. Rd1+ {[%clk 0:00:05]}  Kc6 {[%clk 0:00:12]} 51. Rc1+ {[%clk 0:00:06]}  Kd7 {[%clk 0:00:12]} 52. Rd1+ {[%clk 0:00:06]}  Ke7 {[%clk 0:00:13]} 53. Rc1 {[%clk 0:00:05]}  Rxa4 {[%clk 0:00:11]} 54. Rc7+ {[%clk 0:00:05]}  Kd6 {[%clk 0:00:12]} 55. Rxh7 {[%clk 0:00:05]}  Ra3+ {[%clk 0:00:12]} 56. Kg4 {[%clk 0:00:05]}  Ra1 {[%clk 0:00:11]} 57. Rg7 {[%clk 0:00:05]}  b5 {[%clk 0:00:10]} 58. Rxg6 {[%clk 0:00:05]}  Rg1+ {[%clk 0:00:07]} 59. Kh5 {[%clk 0:00:04]}  Kd5 {[%clk 0:00:04]} 60. Rf6 {[%clk 0:00:04]}  b4 {[%clk 0:00:04]} 61. Rf8 {[%clk 0:00:04]}  b3 {[%clk 0:00:03]} 62. Rb8 {[%clk 0:00:05]}  a4 {[%clk 0:00:03]} 63. g6 {[%clk 0:00:05]}  a3 {[%clk 0:00:03]} 64. Rxb3 {[%clk 0:00:04]}  a2 {[%clk 0:00:03]} 65. Ra3 {[%clk 0:00:04]}  a1=Q {[%clk 0:00:03]} 66. Rxa1 {[%clk 0:00:04]}  Rxa1 {[%clk 0:00:03]} 67. Kg5 {[%clk 0:00:05]}  Rg1+ {[%clk 0:00:03]} 68. Kf6 {[%clk 0:00:05]}  Ke4 {[%clk 0:00:03]} 69. h4 {[%clk 0:00:05]}  Kxf4 {[%clk 0:00:03]} 70. Kxe6 {[%clk 0:00:05]}  Rxg6+ {[%clk 0:00:03]} 71. Kf7 {[%clk 0:00:05]}  Rh6 {[%clk 0:00:03]} 72. Kg7 {[%clk 0:00:05]}  Rxh4 {[%clk 0:00:04]} 73. Kg6 {[%clk 0:00:06]}  Rg4+ {[%clk 0:00:05]} 74. Kf6 {[%clk 0:00:06]}  Rg5 {[%clk 0:00:05]} 75. Ke6 {[%clk 0:00:06]}  Rf5 {[%clk 0:00:05]} 76. Kd6 {[%clk 0:00:06]}  Re5 {[%clk 0:00:05]} 77. Kc6 {[%clk 0:00:06]}  Ke4 {[%clk 0:00:06]} 78. Kd6 {[%clk 0:00:07]}  Kd4 {[%clk 0:00:06]} 79. Kc6 {[%clk 0:00:07]}  Rd5 {[%clk 0:00:07]} 80. Kb6 {[%clk 0:00:07]}  Kc4 {[%clk 0:00:07]} 81. Kc6 {[%clk 0:00:08]}  Rd4 {[%clk 0:00:07]} 82. Kc7 {[%clk 0:00:07]}  Rd5 {[%clk 0:00:06]} 83. Kc6 {[%clk 0:00:07]}  Re5 {[%clk 0:00:06]} 84. Kd6 {[%clk 0:00:07]}  Kd4 {[%clk 0:00:06]} 85. Kc6 {[%clk 0:00:07]}  Rd5 {[%clk 0:00:05]} 86. Kb6 {[%clk 0:00:07]}  Rc5 {[%clk 0:00:06]} 87. Kb7 {[%clk 0:00:07]}  Kd5 {[%clk 0:00:05]} 88. Kb6 {[%clk 0:00:07]}  Kc4 {[%clk 0:00:05]} 89. Kb7 {[%clk 0:00:07]}  Kb5 {[%clk 0:00:05]} 90. Kb8 {[%clk 0:00:06]}  Kb6 {[%clk 0:00:04]} 0-1


[Site "https://www.chess.com"]

[Event "Titled Tuesday Blitz February 14 Late 2023"]
[White "Sztokbant, Bernardo Vainzoff"]
[Black "Alfaro, William"]
[WhiteFideId "2115956"]
[BlackFideId "6100457"]
[WhiteElo "2213"]
[BlackElo "2134"]
[Result "1-0"]
[Round "04"]
[TimeControl "180+2"]
[Date "2023.02.14"]
[WhiteClock "0:00:02"]
[BlackClock "0:00:03"]

1. d4 {[%clk 0:02:59]}  Nf6 {[%clk 0:02:58]} 2. Nf3 {[%clk 0:02:59]}  e6 {[%clk 0:02:55]} 3. g3 {[%clk 0:03:00]}  d5 {[%clk 0:02:54]} 4. Bg2 {[%clk 0:03:01]}  c5 {[%clk 0:02:54]} 5. O-O {[%clk 0:03:02]}  Nc6 {[%clk 0:02:54]} 6. c4 {[%clk 0:02:57]}  dxc4 {[%clk 0:02:52]} 7. Be3 {[%clk 0:02:56]}  Be7 {[%clk 0:02:48]} 8. dxc5 {[%clk 0:02:54]}  O-O {[%clk 0:02:47]} 9. Qc2 {[%clk 0:02:40]}  Nd5 {[%clk 0:02:44]} 10. Qxc4 {[%clk 0:02:25]}  Nxe3 {[%clk 0:02:42]} 11. fxe3 {[%clk 0:02:26]}  Qa5 {[%clk 0:02:40]} 12. Rc1 {[%clk 0:02:24]}  e5 {[%clk 0:02:28]} 13. Nbd2 {[%clk 0:02:07]}  Be6 {[%clk 0:02:24]} 14. Qc3 {[%clk 0:02:03]}  Qxc3 {[%clk 0:01:55]} 15. Rxc3 {[%clk 0:02:01]}  f5 {[%clk 0:01:52]} 16. a3 {[%clk 0:01:59]}  a5 {[%clk 0:01:50]} 17. Nc4 {[%clk 0:01:55]}  Bf6 {[%clk 0:01:29]} 18. Rd1 {[%clk 0:01:42]}  Rad8 {[%clk 0:01:15]} 19. Nd6 {[%clk 0:01:42]}  Rd7 {[%clk 0:01:03]} 20. Rcc1 {[%clk 0:01:24]}  Rfd8 {[%clk 0:01:00]} 21. Rf1 {[%clk 0:01:19]}  g6 {[%clk 0:00:59]} 22. Nd2 {[%clk 0:01:11]}  e4 {[%clk 0:00:49]} 23. N2xe4 {[%clk 0:01:11]}  Bxb2 {[%clk 0:00:48]} 24. Rb1 {[%clk 0:01:11]}  Be5 {[%clk 0:00:42]} 25. Ng5 {[%clk 0:01:10]}  Bxd6 {[%clk 0:00:33]} 26. Nxe6 {[%clk 0:01:08]}  Re8 {[%clk 0:00:34]} 27. cxd6 {[%clk 0:00:48]}  Rxd6 {[%clk 0:00:25]} 28. Nc5 {[%clk 0:00:42]}  Rxe3 {[%clk 0:00:23]} 29. Nxb7 {[%clk 0:00:38]}  Rde6 {[%clk 0:00:20]} 30. Nc5 {[%clk 0:00:38]}  Rd6 {[%clk 0:00:18]} 31. Rb6 {[%clk 0:00:34]}  Rc3 {[%clk 0:00:18]} 32. Na4 {[%clk 0:00:29]}  Rc4 {[%clk 0:00:18]} 33. Nb2 {[%clk 0:00:26]}  Rc2 {[%clk 0:00:18]} 34. Nd3 {[%clk 0:00:24]}  Rxe2 {[%clk 0:00:14]} 35. Nf4 {[%clk 0:00:16]}  Rc2 {[%clk 0:00:12]} 36. Re1 {[%clk 0:00:17]}  Kg7 {[%clk 0:00:12]} 37. h4 {[%clk 0:00:17]}  Kf6 {[%clk 0:00:12]} 38. Nd5+ {[%clk 0:00:16]}  Kg7 {[%clk 0:00:11]} 39. Ne7 {[%clk 0:00:11]}  Rxg2+ {[%clk 0:00:08]} 40. Kxg2 {[%clk 0:00:11]}  Rd2+ {[%clk 0:00:09]} 41. Kf1 {[%clk 0:00:09]}  Nd4 {[%clk 0:00:09]} 42. Nd5 {[%clk 0:00:06]}  Nf3 {[%clk 0:00:08]} 43. Rb7+ {[%clk 0:00:06]}  Kh6 {[%clk 0:00:08]} 44. Re3 {[%clk 0:00:04]}  Nh2+ {[%clk 0:00:06]} 45. Kg1 {[%clk 0:00:04]}  Ng4 {[%clk 0:00:05]} 46. Ree7 {[%clk 0:00:02]}  Rd1+ {[%clk 0:00:02]} 47. Kg2 {[%clk 0:00:02]}  Rd2+ {[%clk 0:00:02]} 48. Kf1 {[%clk 0:00:02]}  Rd1+ {[%clk 0:00:03]} 49. Ke2 {[%clk 0:00:02]} 1-0


[Site "https://www.chess.com"]